[Event "Titled Tuesday Blitz May 4 2021"]
[White "Shlyakhetsky, Vladimir"]
[Black "Aradhya, Garg"]
[WhiteFideId "2805928"]
[BlackFideId "25006746"]
[WhiteElo "2168"]
[BlackElo "2146"]
[Result "0-1"]
[Round "05"]
[TimeControl "180+1"]
[Date "2021.05.04"]
[WhiteClock "0:00:01"]
[BlackClock "0:00:36"]

1. d4 {[%clk 0:03:00]}  d5 {[%clk 0:02:59]} 2. Nf3 {[%clk 0:03:00]}  Nf6 {[%clk 0:02:59]} 3. g3 {[%clk 0:03:01]}  Bf5 {[%clk 0:02:59]} 4. Bg2 {[%clk 0:03:02]}  e6 {[%clk 0:02:59]} 5. O-O {[%clk 0:03:02]}  Nbd7 {[%clk 0:02:55]} 6. c4 {[%clk 0:03:02]}  c6 {[%clk 0:02:56]} 7. Nc3 {[%clk 0:03:03]}  Be7 {[%clk 0:02:52]} 8. Nh4 {[%clk 0:03:03]}  Bg4 {[%clk 0:02:51]} 9. h3 {[%clk 0:03:03]}  Bh5 {[%clk 0:02:51]} 10. Qb3 {[%clk 0:03:03]}  Qb6 {[%clk 0:02:34]} 11. g4 {[%clk 0:03:03]}  Bg6 {[%clk 0:02:32]} 12. g5 {[%clk 0:03:02]}  Ne4 {[%clk 0:02:27]} 13. Nxg6 {[%clk 0:03:01]}  hxg6 {[%clk 0:02:27]} 14. Nxe4 {[%clk 0:03:00]}  dxe4 {[%clk 0:02:27]} 15. Be3 {[%clk 0:02:51]}  Rh5 {[%clk 0:02:06]} 16. Bxe4 {[%clk 0:02:24]}  Rxh3 {[%clk 0:01:44]} 17. Qxb6 {[%clk 0:02:10]}  axb6 {[%clk 0:01:43]} 18. d5 {[%clk 0:02:04]}  Rh4 {[%clk 0:01:40]} 19. dxc6 {[%clk 0:01:51]}  Rxe4 {[%clk 0:01:39]} 20. cxd7+ {[%clk 0:01:50]}  Kxd7 {[%clk 0:01:40]} 21. Rfd1+ {[%clk 0:01:23]}  Kc6 {[%clk 0:01:36]} 22. b3 {[%clk 0:00:54]}  Bxg5 {[%clk 0:01:33]} 23. Bxg5 {[%clk 0:00:46]}  Rg4+ {[%clk 0:01:33]} 24. Kf1 {[%clk 0:00:43]}  Rxg5 {[%clk 0:01:33]} 25. e3 {[%clk 0:00:41]}  Rh8 {[%clk 0:01:27]} 26. Ke2 {[%clk 0:00:41]}  Rh2 {[%clk 0:01:27]} 27. Rh1 {[%clk 0:00:32]}  Rgg2 {[%clk 0:01:27]} 28. Rxh2 {[%clk 0:00:31]}  Rxh2 {[%clk 0:01:28]} 29. Rd1 {[%clk 0:00:28]}  Rh8 {[%clk 0:01:27]} 30. Rd4 {[%clk 0:00:23]}  e5 {[%clk 0:01:23]} 31. Rd5 {[%clk 0:00:21]}  f6 {[%clk 0:01:23]} 32. Kf3 {[%clk 0:00:18]}  Kc7 {[%clk 0:01:20]} 33. Ke2 {[%clk 0:00:17]}  Rd8 {[%clk 0:01:16]} 34. Rb5 {[%clk 0:00:16]}  Kc6 {[%clk 0:01:13]} 35. Rb4 {[%clk 0:00:11]}  e4 {[%clk 0:01:10]} 36. Ra4 {[%clk 0:00:11]}  f5 {[%clk 0:01:09]} 37. Rb4 {[%clk 0:00:10]}  g5 {[%clk 0:01:09]} 38. Rb5 {[%clk 0:00:10]}  g6 {[%clk 0:01:09]} 39. Re5 {[%clk 0:00:10]}  Kd6 {[%clk 0:01:06]} 40. Rd5+ {[%clk 0:00:09]}  Ke7 {[%clk 0:01:06]} 41. Re5+ {[%clk 0:00:06]}  Kf6 {[%clk 0:00:56]} 42. Rb5 {[%clk 0:00:06]}  Rd6 {[%clk 0:00:56]} 43. a4 {[%clk 0:00:05]}  f4 {[%clk 0:00:53]} 44. a5 {[%clk 0:00:03]}  f3+ {[%clk 0:00:49]} 45. Ke1 {[%clk 0:00:02]}  bxa5 {[%clk 0:00:50]} 46. c5 {[%clk 0:00:02]}  Rd5 {[%clk 0:00:38]} 47. Rxa5 {[%clk 0:00:02]}  b6 {[%clk 0:00:36]} 48. Ra6 {[%clk 0:00:02]}  Rxc5 {[%clk 0:00:36]} 49. Rxb6+ {[%clk 0:00:02]}  Kf5 {[%clk 0:00:37]} 50. Kd2 {[%clk 0:00:02]}  Rd5+ {[%clk 0:00:36]} 51. Ke1 {[%clk 0:00:02]}  g4 {[%clk 0:00:36]} 52. b4 {[%clk 0:00:01]}  g3 {[%clk 0:00:36]} 53. fxg3 {[%clk 0:00:01]}  g5 {[%clk 0:00:36]} 0-1


[Site "https://www.chess.com"]

[Event "Titled Tuesday Blitz May 4 2021"]
[White "Smietanska, Wiktoria"]
[Black "Karavaeva, Olga"]
[WhiteFideId "21869359"]
[BlackFideId "4124111"]
[WhiteElo "1780"]
[BlackElo "2105"]
[Result "0-1"]
[Round "05"]
[TimeControl "180+1"]
[Date "2021.05.04"]
[WhiteClock "0:00:07"]
[BlackClock "0:00:12"]

1. e4 {[%clk 0:03:00]}  c5 {[%clk 0:02:59]} 2. d4 {[%clk 0:02:59]}  cxd4 {[%clk 0:02:58]} 3. c3 {[%clk 0:02:59]}  d3 {[%clk 0:02:59]} 4. Bxd3 {[%clk 0:02:58]}  Nf6 {[%clk 0:02:56]} 5. Nf3 {[%clk 0:02:56]}  e6 {[%clk 0:02:55]} 6. c4 {[%clk 0:02:55]}  d5 {[%clk 0:02:53]} 7. cxd5 {[%clk 0:02:54]}  exd5 {[%clk 0:02:54]} 8. e5 {[%clk 0:02:53]}  Nfd7 {[%clk 0:02:53]} 9. O-O {[%clk 0:02:53]}  Bc5 {[%clk 0:02:53]} 10. Nc3 {[%clk 0:02:51]}  Nb6 {[%clk 0:02:50]} 11. Bg5 {[%clk 0:02:48]}  Qd7 {[%clk 0:02:42]} 12. a3 {[%clk 0:02:43]}  h6 {[%clk 0:02:42]} 13. Bh4 {[%clk 0:02:42]}  O-O {[%clk 0:02:39]} 14. b4 {[%clk 0:02:41]}  Be7 {[%clk 0:02:38]} 15. Bxe7 {[%clk 0:02:39]}  Qxe7 {[%clk 0:02:39]} 16. Re1 {[%clk 0:02:34]}  Nc6 {[%clk 0:02:33]} 17. Bc2 {[%clk 0:02:33]}  Bg4 {[%clk 0:02:24]} 18. Qd3 {[%clk 0:02:31]}  g6 {[%clk 0:02:24]} 19. h3 {[%clk 0:02:30]}  Bf5 {[%clk 0:02:23]} 20. Qd2 {[%clk 0:02:29]}  Bxc2 {[%clk 0:02:17]} 21. Qxc2 {[%clk 0:02:30]}  Rad8 {[%clk 0:02:14]} 22. Rad1 {[%clk 0:02:28]}  Rfe8 {[%clk 0:02:13]} 23. Nb5 {[%clk 0:02:22]}  Nc4 {[%clk 0:02:10]} 24. e6 {[%clk 0:02:06]}  f5 {[%clk 0:02:09]} 25. Nfd4 {[%clk 0:02:01]}  Nxd4 {[%clk 0:02:03]} 26. Nxd4 {[%clk 0:01:59]}  Nxa3 {[%clk 0:01:59]} 27. Qc3 {[%clk 0:01:58]}  Nc4 {[%clk 0:01:55]} 28. Qg3 {[%clk 0:01:57]}  Kh7 {[%clk 0:01:52]} 29. h4 {[%clk 0:01:50]}  h5 {[%clk 0:01:22]} 30. Nf3 {[%clk 0:01:35]}  Qxb4 {[%clk 0:01:19]} 31. Rb1 {[%clk 0:01:32]}  Qe7 {[%clk 0:01:14]} 32. Ng5+ {[%clk 0:01:29]}  Kg8 {[%clk 0:01:10]} 33. Nf7 {[%clk 0:01:29]}  Kg7 {[%clk 0:01:00]} 34. Nxd8 {[%clk 0:01:28]}  Rxd8 {[%clk 0:01:01]} 35. Qc3+ {[%clk 0:01:25]}  Kg8 {[%clk 0:01:00]} 36. Qb3 {[%clk 0:01:18]}  b6 {[%clk 0:01:00]} 37. Qg3 {[%clk 0:01:08]}  Kg7 {[%clk 0:00:56]} 38. Ra1 {[%clk 0:01:01]}  a5 {[%clk 0:00:55]} 39. Reb1 {[%clk 0:00:59]}  Qxe6 {[%clk 0:00:52]} 40. Qc3+ {[%clk 0:00:49]}  Qf6 {[%clk 0:00:52]} 41. Qg3 {[%clk 0:00:42]}  Rd7 {[%clk 0:00:46]} 42. Rd1 {[%clk 0:00:37]}  d4 {[%clk 0:00:43]} 43. Qb3 {[%clk 0:00:35]}  Ne5 {[%clk 0:00:39]} 44. Qa4 {[%clk 0:00:30]}  Qxh4 {[%clk 0:00:36]} 45. g3 {[%clk 0:00:29]}  Qh3 {[%clk 0:00:28]} 46. Ra3 {[%clk 0:00:23]}  Rd5 {[%clk 0:00:20]} 47. Rxd4 {[%clk 0:00:21]}  Ng4 {[%clk 0:00:20]} 48. Ra2 {[%clk 0:00:09]}  Qh2+ {[%clk 0:00:17]} 49. Kf1 {[%clk 0:00:09]}  Qh1+ {[%clk 0:00:15]} 50. Ke2 {[%clk 0:00:10]}  Re5+ {[%clk 0:00:15]} 51. Kd2 {[%clk 0:00:08]}  Qe1+ {[%clk 0:00:15]} 52. Kc2 {[%clk 0:00:07]}  Qxf2+ {[%clk 0:00:13]} 53. Kb3 {[%clk 0:00:07]}  Qe3+ {[%clk 0:00:12]} 54. Kc4 {[%clk 0:00:07]}  Rc5# {[%clk 0:00:12]} 0-1


[Site "https://www.chess.com"]

[Event "Titled Tuesday Blitz May 4 2021"]
[White "Sokolov, Andrey M."]
[Black "Garcia Blanco, Omar"]
[WhiteFideId "4171438"]
[BlackFideId "2287153"]
[WhiteElo "2349"]
[BlackElo "2273"]
[Result "1-0"]
[Round "05"]
[TimeControl "180+1"]
[Date "2021.05.04"]
[WhiteClock "0:00:06"]
[BlackClock "0:00:01"]

1. d4 {[%clk 0:03:00]}  Nf6 {[%clk 0:02:52]} 2. Nf3 {[%clk 0:03:00]}  c5 {[%clk 0:02:48]} 3. c3 {[%clk 0:02:59]}  Qc7 {[%clk 0:02:47]} 4. e3 {[%clk 0:02:43]}  b6 {[%clk 0:02:38]} 5. Bd3 {[%clk 0:02:42]}  Bb7 {[%clk 0:02:36]} 6. Nbd2 {[%clk 0:02:41]}  g6 {[%clk 0:02:35]} 7. O-O {[%clk 0:02:40]}  Bg7 {[%clk 0:02:34]} 8. Qe2 {[%clk 0:02:39]}  O-O {[%clk 0:02:33]} 9. e4 {[%clk 0:02:35]}  d6 {[%clk 0:02:31]} 10. d5 {[%clk 0:02:26]}  e6 {[%clk 0:02:26]} 11. c4 {[%clk 0:02:26]}  exd5 {[%clk 0:02:25]} 12. exd5 {[%clk 0:02:23]}  Nbd7 {[%clk 0:02:21]} 13. Qd1 {[%clk 0:02:04]}  Rfe8 {[%clk 0:02:17]} 14. Qc2 {[%clk 0:02:02]}  Ng4 {[%clk 0:02:14]} 15. a4 {[%clk 0:01:43]}  a6 {[%clk 0:02:10]} 16. Ra3 {[%clk 0:01:41]}  b5 {[%clk 0:02:05]} 17. axb5 {[%clk 0:01:36]}  axb5 {[%clk 0:02:04]} 18. Rxa8 {[%clk 0:01:35]}  Bxa8 {[%clk 0:01:59]} 19. b3 {[%clk 0:01:34]}  bxc4 {[%clk 0:01:53]} 20. bxc4 {[%clk 0:01:33]}  Nge5 {[%clk 0:01:44]} 21. Be2 {[%clk 0:01:32]}  Nxf3+ {[%clk 0:01:43]} 22. Nxf3 {[%clk 0:01:30]}  Bb7 {[%clk 0:01:26]} 23. Bf4 {[%clk 0:01:28]}  Ne5 {[%clk 0:01:24]} 24. Rb1 {[%clk 0:01:20]}  Bc8 {[%clk 0:01:20]} 25. Qa4 {[%clk 0:01:14]}  Bd7 {[%clk 0:01:10]} 26. Qa6 {[%clk 0:01:11]}  h6 {[%clk 0:00:48]} 27. h3 {[%clk 0:01:10]}  Rb8 {[%clk 0:00:43]} 28. Rxb8+ {[%clk 0:01:09]}  Qxb8 {[%clk 0:00:44]} 29. Nxe5 {[%clk 0:01:05]}  dxe5 {[%clk 0:00:44]} 30. Be3 {[%clk 0:01:01]}  Bf8 {[%clk 0:00:26]} 31. Qa5 {[%clk 0:00:34]}  Qb1+ {[%clk 0:00:20]} 32. Kh2 {[%clk 0:00:34]}  Qc2 {[%clk 0:00:20]} 33. Bf1 {[%clk 0:00:28]}  Qd1 {[%clk 0:00:18]} 34. Qd8 {[%clk 0:00:25]}  Kg7 {[%clk 0:00:07]} 35. Bxh6+ {[%clk 0:00:19]}  Kxh6 {[%clk 0:00:04]} 36. Qxf8+ {[%clk 0:00:19]}  Kg5 {[%clk 0:00:03]} 37. Qe7+ {[%clk 0:00:17]}  f6 {[%clk 0:00:03]} 38. Qxd7 {[%clk 0:00:15]}  Qxf1 {[%clk 0:00:03]} 39. Qg4+ {[%clk 0:00:14]}  Kh6 {[%clk 0:00:03]} 40. Qh4+ {[%clk 0:00:13]}  Kg7 {[%clk 0:00:04]} 41. d6 {[%clk 0:00:13]}  Qd3 {[%clk 0:00:03]} 42. Qg3 {[%clk 0:00:08]}  Qxd6 {[%clk 0:00:03]} 43. Qf3 {[%clk 0:00:08]}  e4+ {[%clk 0:00:02]} 44. Qg3 {[%clk 0:00:07]}  Qd4 {[%clk 0:00:01]} 45. Qc7+ {[%clk 0:00:07]}  Kh6 {[%clk 0:00:01]} 46. Qf7 {[%clk 0:00:06]}  f5 {[%clk 0:00:01]} 47. Qf8+ {[%clk 0:00:06]} 1-0


[Site "https://www.chess.com"]

[Event "Titled Tuesday Blitz May 4 2021"]
[White "Spata, German"]
[Black "Chitlange Sakshi"]
[WhiteFideId "113026"]
[BlackFideId "35002899"]
[WhiteElo "2238"]
[BlackElo "1787"]
[Result "1/2-1/2"]
[Round "05"]
[TimeControl "180+1"]
[Date "2021.05.04"]
[WhiteClock "0:00:05"]
[BlackClock "0:00:19"]

1. Nf3 {[%clk 0:03:00]}  d5 {[%clk 0:02:59]} 2. b3 {[%clk 0:03:00]}  c5 {[%clk 0:02:54]} 3. Bb2 {[%clk 0:03:00]}  Nc6 {[%clk 0:02:55]} 4. e3 {[%clk 0:03:00]}  a6 {[%clk 0:02:54]} 5. d4 {[%clk 0:02:59]}  cxd4 {[%clk 0:02:53]} 6. Nxd4 {[%clk 0:02:59]}  Nf6 {[%clk 0:02:49]} 7. Be2 {[%clk 0:02:59]}  Nxd4 {[%clk 0:02:44]} 8. Qxd4 {[%clk 0:02:57]}  Bf5 {[%clk 0:02:38]} 9. O-O {[%clk 0:02:52]}  g6 {[%clk 0:02:25]} 10. c4 {[%clk 0:02:43]}  dxc4 {[%clk 0:02:21]} 11. Qxc4 {[%clk 0:02:41]}  Bg7 {[%clk 0:02:18]} 12. Rd1 {[%clk 0:02:30]}  Qc8 {[%clk 0:02:16]} 13. Qxc8+ {[%clk 0:02:29]}  Rxc8 {[%clk 0:02:15]} 14. Na3 {[%clk 0:02:25]}  b5 {[%clk 0:02:07]} 15. Rac1 {[%clk 0:02:25]}  O-O {[%clk 0:02:04]} 16. h3 {[%clk 0:02:23]}  Be4 {[%clk 0:01:58]} 17. Nb1 {[%clk 0:02:11]}  Bc2 {[%clk 0:01:48]} 18. Re1 {[%clk 0:02:05]}  Rfd8 {[%clk 0:01:32]} 19. Nc3 {[%clk 0:01:55]}  Bf5 {[%clk 0:01:19]} 20. Bf3 {[%clk 0:01:42]}  Ne4 {[%clk 0:01:05]} 21. Bxe4 {[%clk 0:01:37]}  Bxe4 {[%clk 0:01:02]} 22. Nxe4 {[%clk 0:01:35]}  Bxb2 {[%clk 0:01:03]} 23. Rcd1 {[%clk 0:01:19]}  Ba3 {[%clk 0:01:00]} 24. Kf1 {[%clk 0:01:12]}  h6 {[%clk 0:00:54]} 25. Rxd8+ {[%clk 0:01:09]}  Rxd8 {[%clk 0:00:53]} 26. Ke2 {[%clk 0:01:08]}  f5 {[%clk 0:00:52]} 27. Nd2 {[%clk 0:00:50]}  Bb4 {[%clk 0:00:50]} 28. Rd1 {[%clk 0:00:50]}  Rc8 {[%clk 0:00:51]} 29. a4 {[%clk 0:00:38]}  Rc2 {[%clk 0:00:45]} 30. axb5 {[%clk 0:00:38]}  axb5 {[%clk 0:00:44]} 31. Kd3 {[%clk 0:00:38]}  Rc3+ {[%clk 0:00:43]} 32. Ke2 {[%clk 0:00:38]}  Kf7 {[%clk 0:00:41]} 33. Nf3 {[%clk 0:00:34]}  Rxb3 {[%clk 0:00:36]} 34. Rd7 {[%clk 0:00:26]}  Ke6 {[%clk 0:00:34]} 35. Rb7 {[%clk 0:00:26]}  Rb2+ {[%clk 0:00:33]} 36. Kd3 {[%clk 0:00:26]}  Bc5 {[%clk 0:00:32]} 37. Rc7 {[%clk 0:00:23]}  Kd6 {[%clk 0:00:31]} 38. Rc8 {[%clk 0:00:18]}  b4 {[%clk 0:00:30]} 39. Rg8 {[%clk 0:00:09]}  Rxf2 {[%clk 0:00:29]} 40. Rxg6+ {[%clk 0:00:10]}  Kc7 {[%clk 0:00:29]} 41. Ne5 {[%clk 0:00:10]}  Bd6 {[%clk 0:00:27]} 42. Nc4 {[%clk 0:00:09]}  b3 {[%clk 0:00:27]} 43. Nxd6 {[%clk 0:00:10]}  exd6 {[%clk 0:00:26]} 44. Rg7+ {[%clk 0:00:09]}  Kc6 {[%clk 0:00:26]} 45. Rg8 {[%clk 0:00:10]}  b2 {[%clk 0:00:25]} 46. Rb8 {[%clk 0:00:10]}  Kd5 {[%clk 0:00:25]} 47. Rb5+ {[%clk 0:00:09]}  Ke6 {[%clk 0:00:25]} 48. g4 {[%clk 0:00:09]}  fxg4 {[%clk 0:00:24]} 49. hxg4 {[%clk 0:00:10]}  Rg2 {[%clk 0:00:25]} 50. e4 {[%clk 0:00:10]}  Rxg4 {[%clk 0:00:23]} 51. Rxb2 {[%clk 0:00:09]}  h5 {[%clk 0:00:23]} 52. Kd4 {[%clk 0:00:09]}  h4 {[%clk 0:00:22]} 53. Rb8 {[%clk 0:00:09]}  Kf6 {[%clk 0:00:18]} 54. Rh8 {[%clk 0:00:07]}  Kg7 {[%clk 0:00:18]} 55. Rh5 {[%clk 0:00:07]}  Kg6 {[%clk 0:00:17]} 56. Rh8 {[%clk 0:00:07]}  Kf6 {[%clk 0:00:17]} 57. Kd5 {[%clk 0:00:07]}  Kg7 {[%clk 0:00:15]} 58. Rh5 {[%clk 0:00:06]}  Kg6 {[%clk 0:00:16]} 59. Rh8 {[%clk 0:00:06]}  Rg5+ {[%clk 0:00:16]} 60. Kxd6 {[%clk 0:00:06]}  Rh5 {[%clk 0:00:17]} 61. Rxh5 {[%clk 0:00:06]}  Kxh5 {[%clk 0:00:18]} 62. e5 {[%clk 0:00:06]}  h3 {[%clk 0:00:18]} 63. e6 {[%clk 0:00:07]}  h2 {[%clk 0:00:18]} 64. e7 {[%clk 0:00:08]}  h1=Q {[%clk 0:00:18]} 65. e8=Q+ {[%clk 0:00:08]}  Kg4 {[%clk 0:00:18]} 66. Qg8+ {[%clk 0:00:07]}  Kf4 {[%clk 0:00:18]} 67. Qf7+ {[%clk 0:00:07]}  Kg3 {[%clk 0:00:18]} 68. Qg6+ {[%clk 0:00:07]}  Kf2 {[%clk 0:00:18]} 69. Qf5+ {[%clk 0:00:06]}  Qf3 {[%clk 0:00:18]} 70. Qxf3+ {[%clk 0:00:05]}  Kxf3 {[%clk 0:00:19]} 1/2-1/2


[Site "https://www.chess.com"]

[Event "Titled Tuesday Blitz May 4 2021"]
[White "Stromboli, Ettore"]
[Black "Skoberne, Jure"]
[WhiteFideId "813761"]
[BlackFideId "14604299"]
[WhiteElo "2414"]
[BlackElo "2559"]
[Result "0-1"]
[Round "05"]
[TimeControl "180+1"]
[Date "2021.05.04"]
[WhiteClock "0:00:06"]
[BlackClock "0:01:28"]

1. e4 {[%clk 0:02:42]}  c5 {[%clk 0:02:59]} 2. Nf3 {[%clk 0:02:40]}  Nc6 {[%clk 0:02:59]} 3. d4 {[%clk 0:02:40]}  cxd4 {[%clk 0:03:00]} 4. Nxd4 {[%clk 0:02:40]}  e5 {[%clk 0:03:01]} 5. Nb5 {[%clk 0:02:40]}  d6 {[%clk 0:03:01]} 6. N1c3 {[%clk 0:02:36]}  a6 {[%clk 0:03:02]} 7. Na3 {[%clk 0:02:36]}  b5 {[%clk 0:03:02]} 8. Nd5 {[%clk 0:02:36]}  Nge7 {[%clk 0:03:02]} 9. c4 {[%clk 0:02:36]}  Nxd5 {[%clk 0:03:03]} 10. exd5 {[%clk 0:02:33]}  Nd4 {[%clk 0:03:02]} 11. Bd3 {[%clk 0:02:32]}  Be7 {[%clk 0:02:59]} 12. Be3 {[%clk 0:02:30]}  Nf5 {[%clk 0:02:56]} 13. O-O {[%clk 0:02:23]}  Nxe3 {[%clk 0:02:55]} 14. fxe3 {[%clk 0:02:23]}  b4 {[%clk 0:02:41]} 15. Qa4+ {[%clk 0:01:55]}  Bd7 {[%clk 0:02:41]} 16. Qxb4 {[%clk 0:01:55]}  O-O {[%clk 0:02:41]} 17. Bf5 {[%clk 0:01:37]}  Be8 {[%clk 0:02:36]} 18. b3 {[%clk 0:01:30]}  g6 {[%clk 0:02:35]} 19. Bd3 {[%clk 0:01:30]}  Bg5 {[%clk 0:02:34]} 20. Nc2 {[%clk 0:01:22]}  f5 {[%clk 0:02:34]} 21. e4 {[%clk 0:01:21]}  a5 {[%clk 0:02:21]} 22. Qa3 {[%clk 0:01:09]}  Qb6+ {[%clk 0:02:16]} 23. Kh1 {[%clk 0:01:08]}  Bd7 {[%clk 0:02:15]} 24. Rae1 {[%clk 0:01:01]}  Bd2 {[%clk 0:01:42]} 25. Re2 {[%clk 0:00:52]}  fxe4 {[%clk 0:01:42]} 26. Rxf8+ {[%clk 0:00:10]}  Rxf8 {[%clk 0:01:43]} 27. Rxe4 {[%clk 0:00:10]}  Bf5 {[%clk 0:01:35]} 28. c5 {[%clk 0:00:09]}  dxc5 {[%clk 0:01:33]} 29. h3 {[%clk 0:00:05]}  Bxe4 {[%clk 0:01:33]} 30. Bxe4 {[%clk 0:00:06]}  Rf1+ {[%clk 0:01:33]} 31. Kh2 {[%clk 0:00:06]}  Bf4+ {[%clk 0:01:27]} 32. g3 {[%clk 0:00:06]}  c4 {[%clk 0:01:28]} 0-1


[Site "https://www.chess.com"]

[Event "Titled Tuesday Blitz May 4 2021"]
[White "Sumaneev, Dmitry"]
[Black "Djordjevic, Vuk"]
[WhiteFideId "4125312"]
[BlackFideId "902098"]
[WhiteElo "2501"]
[BlackElo "2463"]
[Result "0-1"]
[Round "05"]
[TimeControl "180+1"]
[Date "2021.05.04"]
[WhiteClock "0:00:07"]
[BlackClock "0:00:06"]

1. e4 {[%clk 0:02:56]}  e6 {[%clk 0:03:00]} 2. Qe2 {[%clk 0:02:56]}  c5 {[%clk 0:02:59]} 3. Nf3 {[%clk 0:02:54]}  Nc6 {[%clk 0:03:00]} 4. g3 {[%clk 0:02:53]}  Be7 {[%clk 0:03:00]} 5. d3 {[%clk 0:02:51]}  d5 {[%clk 0:03:00]} 6. Bg2 {[%clk 0:02:48]}  Nf6 {[%clk 0:03:00]} 7. e5 {[%clk 0:02:48]}  Nd7 {[%clk 0:03:00]} 8. c4 {[%clk 0:02:48]}  a6 {[%clk 0:02:55]} 9. O-O {[%clk 0:02:42]}  b5 {[%clk 0:02:46]} 10. Nc3 {[%clk 0:02:38]}  d4 {[%clk 0:02:19]} 11. cxb5 {[%clk 0:02:26]}  axb5 {[%clk 0:02:16]} 12. Nxb5 {[%clk 0:02:24]}  Ba6 {[%clk 0:02:16]} 13. Na3 {[%clk 0:02:20]}  Nb4 {[%clk 0:02:01]} 14. Rd1 {[%clk 0:01:39]}  O-O {[%clk 0:01:52]} 15. h4 {[%clk 0:01:39]}  Nb6 {[%clk 0:01:34]} 16. Ng5 {[%clk 0:01:30]}  h6 {[%clk 0:01:00]} 17. Bxa8 {[%clk 0:01:17]}  Qxa8 {[%clk 0:01:01]} 18. Ne4 {[%clk 0:01:17]}  Qd5 {[%clk 0:01:01]} 19. Bf4 {[%clk 0:01:14]}  c4 {[%clk 0:00:44]} 20. dxc4 {[%clk 0:00:58]}  Nxc4 {[%clk 0:00:43]} 21. Nxc4 {[%clk 0:00:58]}  Bxc4 {[%clk 0:00:41]} 22. Qf3 {[%clk 0:00:58]}  Bd3 {[%clk 0:00:22]} 23. Nd2 {[%clk 0:00:54]}  Qb5 {[%clk 0:00:18]} 24. Qg4 {[%clk 0:00:42]}  Be2 {[%clk 0:00:17]} 25. Nf3 {[%clk 0:00:37]}  f5 {[%clk 0:00:13]} 26. exf6 {[%clk 0:00:35]}  Rxf6 {[%clk 0:00:12]} 27. Nxd4 {[%clk 0:00:32]}  Bxd1 {[%clk 0:00:07]} 28. Qxd1 {[%clk 0:00:28]}  Qd5 {[%clk 0:00:06]} 29. Nb3 {[%clk 0:00:25]}  Qe4 {[%clk 0:00:06]} 30. Qd4 {[%clk 0:00:22]}  Qf5 {[%clk 0:00:05]} 31. Re1 {[%clk 0:00:19]}  Nd5 {[%clk 0:00:06]} 32. Qe5 {[%clk 0:00:17]}  Qg4 {[%clk 0:00:05]} 33. Be3 {[%clk 0:00:15]}  Qf3 {[%clk 0:00:05]} 34. Nd4 {[%clk 0:00:13]}  Qg4 {[%clk 0:00:06]} 35. Qb8+ {[%clk 0:00:12]}  Kh7 {[%clk 0:00:06]} 36. Qe5 {[%clk 0:00:12]}  Rg6 {[%clk 0:00:06]} 37. Kg2 {[%clk 0:00:12]}  Bxh4 {[%clk 0:00:06]} 38. f3 {[%clk 0:00:10]}  Qxg3+ {[%clk 0:00:06]} 39. Qxg3 {[%clk 0:00:10]}  Bxg3 {[%clk 0:00:06]} 40. Kh3 {[%clk 0:00:07]}  Bxe1 {[%clk 0:00:06]} 0-1


[Site "https://www.chess.com"]

[Event "Titled Tuesday Blitz May 4 2021"]
[White "Svane, Rasmus"]
[Black "Sellitti, Federico"]
[WhiteFideId "4657101"]
[BlackFideId "821829"]
[WhiteElo "2669"]
[BlackElo "2606"]
[Result "1-0"]
[Round "05"]
[TimeControl "180+1"]
[Date "2021.05.04"]
[WhiteClock "0:00:37"]
[BlackClock "0:00:07"]

1. Nf3 {[%clk 0:02:45]}  Nf6 {[%clk 0:02:59]} 2. g3 {[%clk 0:02:45]}  g6 {[%clk 0:03:00]} 3. Bg2 {[%clk 0:02:45]}  Bg7 {[%clk 0:03:00]} 4. O-O {[%clk 0:02:45]}  O-O {[%clk 0:02:59]} 5. d4 {[%clk 0:02:45]}  d5 {[%clk 0:02:58]} 6. c4 {[%clk 0:02:45]}  dxc4 {[%clk 0:02:55]} 7. Na3 {[%clk 0:02:44]}  c3 {[%clk 0:02:54]} 8. bxc3 {[%clk 0:02:45]}  c5 {[%clk 0:02:53]} 9. Ne5 {[%clk 0:02:42]}  Nc6 {[%clk 0:02:51]} 10. Nac4 {[%clk 0:02:35]}  Nd5 {[%clk 0:02:49]} 11. Nxc6 {[%clk 0:02:32]}  bxc6 {[%clk 0:02:49]} 12. Bd2 {[%clk 0:02:33]}  Ba6 {[%clk 0:02:46]} 13. Ne5 {[%clk 0:02:31]}  Qd6 {[%clk 0:02:44]} 14. Rc1 {[%clk 0:02:24]}  Bxe5 {[%clk 0:02:24]} 15. dxe5 {[%clk 0:02:23]}  Qxe5 {[%clk 0:02:25]} 16. c4 {[%clk 0:02:23]}  Nb6 {[%clk 0:02:25]} 17. Bc3 {[%clk 0:02:07]}  Qe6 {[%clk 0:02:14]} 18. Ba1 {[%clk 0:02:07]}  Bxc4 {[%clk 0:01:57]} 19. Qd2 {[%clk 0:02:05]}  Bd5 {[%clk 0:01:32]} 20. e4 {[%clk 0:02:01]}  Bxa2 {[%clk 0:01:32]} 21. Rxc5 {[%clk 0:01:58]}  f6 {[%clk 0:01:11]} 22. h4 {[%clk 0:01:52]}  Rfd8 {[%clk 0:01:10]} 23. Qh6 {[%clk 0:01:45]}  Nd7 {[%clk 0:01:01]} 24. Ra5 {[%clk 0:01:27]}  Bc4 {[%clk 0:00:47]} 25. Rc1 {[%clk 0:01:27]}  a6 {[%clk 0:00:38]} 26. h5 {[%clk 0:01:25]}  g5 {[%clk 0:00:31]} 27. Rxg5+ {[%clk 0:01:24]}  Kf7 {[%clk 0:00:24]} 28. Qxh7+ {[%clk 0:01:12]}  Ke8 {[%clk 0:00:24]} 29. Rg7 {[%clk 0:00:46]}  Nf8 {[%clk 0:00:22]} 30. Qh6 {[%clk 0:00:42]}  f5 {[%clk 0:00:12]} 31. Qg5 {[%clk 0:00:40]}  fxe4 {[%clk 0:00:10]} 32. Rxc4 {[%clk 0:00:36]}  Rd1+ {[%clk 0:00:07]} 33. Kh2 {[%clk 0:00:37]}  Rxa1 {[%clk 0:00:07]} 34. Rxe4 {[%clk 0:00:37]} 1-0


[Site "https://www.chess.com"]